Cogmind - Beta 16 @@@ ROGUE MODE // 2025.11.16 @ 09:04:11 Player: Mozco Result: Destroyed by Y-45 Defender with Heavy Assault Rifle Performance ------------- Evolutions (1) 500 Regions Visited (2) 400 Robots Destroyed (29) 145 Value Destroyed (621) 621 Prototype IDs (4) 80 Alien Tech Used (0) 0 Bonus (0) 0 TOTAL SCORE: 1746 Bonus ------- None Cogmind --------- Core Integrity 0/400 Matter 300/300 Energy 276/280 System Corruption 6% Temperature Cool (2) Movement Walking (190) Ox1 Location -9/Materials Parts ------- > --- POWER (1) -------- Heavy Ion Engine > --- PROPULSION (3) --- Aluminum Leg Aluminum Leg > --- UTILITY (3) ------ Large Storage Unit Hardened Light Armor Plating > --- WEAPON (2) ------- Flail Mining Claw > --- INVENTORY (15) --- Reinforced Ion Engine Cooled Ion Engine Aluminum Leg Aluminum Leg Aluminum Leg Aluminum Leg Improved Aluminum Leg Small Storage Unit Sensor Array Hacking Suite Mining Claw Mining Claw Peak State ------------ > --- POWER ------------ Cooled Ion Engine > --- PROPULSION ------- Aluminum Leg Aluminum Leg Aluminum Leg > --- UTILITY ---------- Small Storage Unit Weight Redist. System Weight Redist. System > --- WEAPON ----------- Flail Mining Claw > --- INVENTORY -------- Aluminum Leg Aluminum Leg Aluminum Leg Improved Aluminum Leg Large Storage Unit Sensor Array Transport Network Coupler Hacking Suite [Rating: 15] Favorites ----------- Power Ion Engine Engine Ion Engine Propulsion Aluminum Leg Leg Aluminum Leg Utility Small Storage Unit Device Weight Redist. System Storage Small Storage Unit Processor Signal Interpreter Protection Hardened Light Armor Plating Weapon Mining Claw Impact Weapon Flail Slashing Weapon Mining Claw Build | -11 -10 -9 ------- Run | Yrd Mat Mat Slots Evolved 2 | . . 2 Power . | . . . Propulsion 1 | . . 1 Utility 1 | . . 1 Weapon . | . . . Parts Attached 23 | . 10 13 Power 5 | . 2 3 Engine 5 | . 2 3 Core . | . . . Reactor . | . . . Propulsion 8 | . 4 4 Treads . | . . . Leg 8 | . 4 4 Wheel . | . . . Hover . | . . . Flight . | . . . Utility 8 | . 3 5 Device 2 | . 1 1 Storage 2 | . 1 1 Processor 2 | . 1 1 Hackware . | . . . Protection 2 | . . 2 Artifact . | . . . Weapon 2 | . 1 1 Energy Gun . | . . . Energy Cannon . | . . . Ballistic Gun . | . . . Ballistic Cannon . | . . . Launcher . | . . . Special Weapon . | . . . Impact Weapon 1 | . . 1 Slashing Weapon 1 | . 1 . Piercing Weapon . | . . . Special Melee Weapon . | . . . Unidentified Prototypes 2 | . . 2 Parts Lost 8 | . 1 7 Power 1 | . . 1 Propulsion 4 | . 1 3 Utility 3 | . . 3 Weapon . | . . . Highest Loss Streak 4 | . 1 4 To Critical Strikes . | . . . Average Backups 7 | 2 4 8 Power 1 | . 1 . Propulsion 2 | 1 1 3 Utility 3 | . 2 3 Weapon . | . . . Tool/Special . | . . . Unused Backups 12 | . 1 11 Power 1 | . . 1 Propulsion 6 | . 1 5 Utility 3 | . . 3 Weapon 2 | . . 2 Tool/Special . | . . . Average Slot Usage (%) 78 | . 70 83 Engine 10 | . 12 9 Leg 25 | . 19 28 Device 7 | . 6 8 Storage 11 | . 12 11 Processor 3 | . 5 2 Protection 1 | . . 2 Impact Weapon 6 | . . 10 Slashing Weapon 11 | . 12 10 Peak Build Rating 15 | . 8 15 Average Rating 9 | . 5 11 On Entrance 2 | . . 7 Avg Prop Armor Cover (%) 13 | . . 13 Naked Turns 43 | . 43 . Heaviest Build 37 | . 12 37 Greatest Support 36 | 3 26 36 Greatest Overweight (x) 1 | . 1 1 Average Overweight (x) . | . . . Largest Inventory Capacity 15 | 5 8 15 Average Capacity 9 | 5 7 11 Most Carried 13 | 5 8 13 Average Carried 7 | 3 4 8 Final Capacity 15 | 5 8 15 Final Carried 12 | 5 7 12 Class Distribution -------------------- 93% | Mutant 6% | Scavenger-Mutant Dominant Class ---------------- Mutant | -10/Materials Mutant | -9/Materials Resources | -11 -10 -9 ----------- Run | Yrd Mat Mat Matter Collected 437 | 190 105 142 Remotely . | . . . Salvage Created 994 | . 234 760 Parts 37 | . 18 19 Haulers Intercepted 5 | . 1 4 Recyclers Shooed 1 | . 1 . Parts Field Recycled . | . . . Retrieved Matter . | . . . Parts Self-Destructed . | . . . Prevented . | . . . Parts Restored . | . . . Kills | -11 -10 -9 ------- Run | Yrd Mat Mat Combat Hostiles Destroyed 16 | . 3 13 Melee 11 | . 3 8 Classes Destroyed 10 | . 4 6 Worker 2 | . . 2 Hauler 5 | . 1 4 Mechanic 2 | . . 2 Operator 1 | . 1 . Watcher 3 | . 2 1 Swarmer 3 | . . 3 Grunt 9 | . 3 6 Brawler 1 | . . 1 Duelist 1 | . . 1 Sentry 2 | . . 2 Best Kill Streak 6 | . 3 6 Combat Bots Only 6 | . 2 6 Max Kills in Single Turn 1 | . 1 1 Gunslinging . | . . . Exploded . | . . . Melee 1 | . 1 1 Uniques/NPCs Destroyed . | . . . Combat | -11 -10 -9 -------- Run | Yrd Mat Mat Hostile Shots Fired 114 | . 22 92 Missed 19 | . 4 15 Hits 95 | . 18 77 Melee 19 | . . 19 Projectile 76 | . 18 58 AOE 1 | . 1 . Critical Strikes 5 | . . 5 Actively Blocked 2 | . . 2 Damage Taken 1449 | . 244 1205 Core 468 | . 68 400 Absorbed by Shields . | . . . Redirected to Shielding 51 | . . 51 Regen/Repaired (Parts) 29 | . . 29 Core Remaining (%) 86 | 100 72 . Volleys Fired . | . . . Largest . | . . . Hottest . | . . . Shots Fired . | . . . Gun . | . . . Cannon . | . . . Launcher . | . . . Special . | . . . Kinetic . | . . . Thermal . | . . . Explosive . | . . . Electromagnetic . | . . . Robot Hit Streak . | . . . Robot Miss Streak . | . . . Penetration Max . | . . . Secondary Targets . | . . . Shots Hit Robots 85 | . 17 68 Core Hits 17 | . 7 10 Critical Kills 1 | . . 1 Critical Parts Destroyed 11 | . . 11 Critical Strikes 13 | . . 13 Smash 13 | . . 13 Melee Attacks 118 | . 26 92 Impact 60 | . . 60 Slashing 58 | . 26 32 Piercing . | . . . Sneak Attacks 19 | . 6 13 Combat Hostiles . | . . . Follow-up Attacks 18 | . . 18 Damage Inflicted 3015 | . 513 2502 Guns . | . . . Cannons . | . . . Explosions . | . . . Melee 3015 | . 513 2502 Ramming . | . . . Kinetic . | . . . Thermal . | . . . Explosive . | . . . Electromagnetic . | . . . Impact 1957 | . . 1957 Slashing 1058 | . 513 545 Piercing . | . . . Highest Corruption 6 | . . 6 Average Corruption 5 | . . 5 Corruption Purged . | . . . Corruption Blocked . | . . . Effects 4 | . . 4 Message Errors 2 | . . 2 Data Loss (minor) 1 | . . 1 Data Loss (major) 1 | . . 1 Overload Shots . | . . . Overflow Damage 761 | . . 761 Projectiles . | . . . Explosions . | . . . Melee 761 | . . 761 Knockbacks 7 | . . 7 Impact 6 | . . 6 Kinetic . | . . . Secondary 1 | . . 1 Self-Inflicted Damage . | . . . Shots . | . . . Rammed . | . . . Targets Rammed . | . . . Kicked . | . . . Crushed . | . . . Highest Temperature 6 | . . 6 Average Temperature 6 | . . 6 Received Heat Transfer 216 | . 18 198 Siege Activations . | . . . Martial Activations . | . . . Shielding Activations . | . . . Robots Disrupted . | . . . Combat Hostiles . | . . . Robots Corrupted 10 | . . 10 Combat Hostiles 5 | . . 5 Parts Fried 15 | . . 15 Impact Corruptions 28 | . . 28 Robots Melted . | . . . Combat Hostiles . | . . . Parts Melted . | . . . Heat Transferred . | . . . Parts Sabotaged . | . . . Parts Stolen . | . . . Parts Stripped . | . . . Power Chain Reactions . | . . . Alert | -11 -10 -9 ------- Run | Yrd Mat Mat Maximum Alert Level . | . . . Low Security (%) 100 | 100 100 100 Level 1 . | . . . Level 2 . | . . . Level 3 . | . . . Level 4 . | . . . Level 5 . | . . . High Security . | . . . Max Security . | . . . Peak Influence 117 | . 48 117 Initial . | . . . Average 38 | . 13 56 Influence Increases 561 | . 155 406 Destroy 0b10 Robot/C 320 | . 60 260 Destroy 0b10 Robot/NC 65 | . 20 45 Destroy Leader 96 | . 26 70 Successful Hack 49 | . 34 15 Disable Machine 15 | . 15 . Destroy Structure 1 | . . 1 Lose Combat Pursuer 15 | . . 15 Influence Decreases 542 | . 155 387 Time Decay 481 | . 155 326 Lost Part 61 | . . 61 Squads Dispatched 5 | . 2 3 Investigation 1 | . 1 . Extermination . | . . . Reinforcement 4 | . 1 3 Assault . | . . . Garrison . | . . . Intercept . | . . . Searches Triggered . | . . . Construction Impeded . | . . . Haulers Reinforced . | . . . Active Scanning Responses . | . . . Cargo Convoy Interrupts . | . . . Stealth | -11 -10 -9 --------- Run | Yrd Mat Mat Distress Signals 6 | . 2 4 Communications Jammed . | . . . Distress Signals . | . . . Times Spotted 35 | . 11 24 Peak Tracking Total 5 | . 4 5 Tactical Retreats 1 | . . 1 Traps | -11 -10 -9 ------- Run | Yrd Mat Mat Traps Triggered . | . . . Indirectly . | . . . Trap Hack Attempts . | . . . Triggered . | . . . Disarmed . | . . . Reprogrammed . | . . . Reused . | . . . Traps Extracted . | . . . Installed . | . . . Triggered . | . . . Machines | -11 -10 -9 ---------- Run | Yrd Mat Mat Machines Disabled 1 | . 1 . Max in Single Turn 1 | . 1 . Machines Repaired . | . . . Machines Dismantled . | . . . Machines Sabotaged . | . . . Overloaded Fab Kills . | . . . Hacking | -11 -10 -9 --------- Run | Yrd Mat Mat Machines Accessed 10 | . 4 6 Terminals 7 | . 3 4 Fabricators . | . . . Repair Stations 2 | . 1 1 Recycling Units . | . . . Scanalyzers 1 | . . 1 Garrison Access . | . . . Total Hacks 39 | . 13 26 Successful 23 | . 7 16 Failed 14 | . 5 9 Catastrophic 3 | . 1 2 Database Lockouts 2 | . 1 1 Manual 17 | . 4 13 Terminals 25 | . 8 17 Fabricators . | . . . Repair Stations 8 | . 5 3 Recycling Units . | . . . Scanalyzers 6 | . . 6 Garrison Access . | . . . Terminal Hacks 10 | . 5 5 Part Schematic 1 | . . 1 Robot Analysis 8 | . 5 3 Prototype ID Bank 1 | . . 1 Fabricator Hacks . | . . . Repair Station Hacks 4 | . 2 2 Scan Component 3 | . 2 1 Repair 1 | . . 1 Recycling Unit Hacks . | . . . Scanalyzer 6 | . . 6 Insert Component 3 | . . 3 Analyze 3 | . . 3 Garrison Access Hacks . | . . . Unauthorized Hacks 3 | . . 3 Terminals 3 | . . 3 Botnet 3 | . . 3 Fabricators . | . . . Repair Stations . | . . . Recycling Units . | . . . Scanalyzers . | . . . Garrison Access . | . . . Data Cores Recovered . | . . . Used . | . . . Hacking Detections 9 | . 4 5 Full Trace Events 2 | . 2 . Feedback Events . | . . . Feedback Blocked . | . . . Robot Schematics Acquired . | . . . Robots Built . | . . . Authchips . | . . . Time . | . . . Total Robot Build Rating . | . . . Part Schematics Acquired 4 | . . 4 Parts Built . | . . . Authchips . | . . . Time . | . . . Total Part Build Rating . | . . . Part Studies Acquired . | . . . Parts Repaired 1 | . . 1 Time 26 | . . 26 Parts Recycled . | . . . Recycled Matter . | . . . Retrieved Matter . | . . . Retrieved Components . | . . . Parts Scanalyzed 3 | . . 3 Part Schematics Acquired 3 | . . 3 Parts Damaged . | . . . Bothacking | -11 -10 -9 ------------ Run | Yrd Mat Mat Used RIF Installer . | . . . Robots Hacked . | . . . Non-combat . | . . . Combat . | . . . Robot Hacks Applied . | . . . Relay Couplers Released . | . . . Fabnet Peak Effective % . | . . . Robots Rewired . | . . . Allies Hacked . | . . . Hacks Repelled . | . . . Allies | -11 -10 -9 -------- Run | Yrd Mat Mat Total Allies . | . . . Largest Group . | . . . Highest-Rated Group . | . . . Highest-Rated Ally . | . . . Total Orders . | . . . Ally Attacks . | . . . Total Damage . | . . . Kills . | . . . Allies Corrupted . | . . . Allies Melted . | . . . Intel | -11 -10 -9 ------- Run | Yrd Mat Mat Active Infowar (turns) 206 | . . 206 T.N.C. 206 | . . 206 Robot Analysis Total 8 | . 5 3 Derelict Logs Recovered . | . . . Drone Launches . | . . . Drone Recoveries . | . . . Exploration | -11 -10 -9 ------------- Run | Yrd Mat Mat Turns Passed 1397 | 29 546 822 Spaces Moved 834 | 48 381 405 Core 173 | 48 85 40 Treads . | . . . Legs 661 | . 296 365 Wheels . | . . . Hover . | . . . Flight . | . . . Fastest Speed 50 | 50 50 50 Average Speed 113 | 50 113 122 Slowest Speed 190 | 50 190 190 Overloaded Moves . | . . . Propulsion Burnouts . | . . . Robots Hopped . | . . . Potential Cave-ins . | . . . Cave-ins Triggered . | . . . Exploration Rate (%) 33 | 5 51 43 Regions Visited 2 Branch Regions . Pre-discovered Areas . | . . . Known Exits Taken . | . . . Unknown Exits Taken 2 | 1 1 . Scrap Searched . | . . . Spaces Dug . | . . . Terrain Destroyed . | . . . Melee . | . . . Projectile . | . . . AOE . | . . . Terrain Rammed . | . . . Walls Destroyed . | . . . Machines Disabled . | . . . Actions | -11 -10 -9 --------- Run | Yrd Mat Mat Total 1099 | 52 442 605 Wait 114 | . 16 98 Move 832 | 47 380 405 Hop . | . . . Pick Up 19 | 5 6 8 Fast Attach 11 | . 4 7 Attach 9 | . 4 5 Detach 1 | . . 1 Swap 5 | . 2 3 Drop 9 | . 4 5 Fire . | . . . Melee 99 | . 26 73 Ram . | . . . Kick . | . . . Crush . | . . . Escape Stasis . | . . . Rewire . | . . . Trap . | . . . Miscellaneous . | . . . Route ------- -11/Scrapyard -10/Materials (discovered 2 exits: *Mat / [*Min]) -9/Materials (discovered 1 exit: [*Min]) History --------- Turn | Location | Event 4 | -11/Scrapyard | Discovered new exit (range 15) 30 | -11/Scrapyard | Entered Materials 171 | -10/Materials | Discovered new exit (range 13) 303 | -10/Materials | Build established: Mutant 310 | -10/Materials | Discovered new exit (range 12) 442 | -10/Materials | Central database locked down 576 | -10/Materials | Entered another Materials area 576 | -9/Materials | Evolved 2 slots: Propulsion x1, Utility x1 660 | -9/Materials | Core integrity fell below 50% 688 | -9/Materials | Lost 4 parts (1p2n1u) 1035 | -9/Materials | Central database locked down 1113 | -9/Materials | Discovered new exit (range 11) 1152 | -9/Materials | Repaired Mining Claw 1231 | -9/Materials | Core integrity fell below 20% 1398 | -9/Materials | Destroyed by Y-45 Defender with Heavy Assault Rifle Last Messages --------------- 01300_ Y-45 Defender suffers critical hit (Smash). 01300_ Destroyed Imp. Ion Engine. 01300_ Y-45 Defender system corrupted by crushing effect. 01301_ Y-45 Defender system terminally corrupted. 01301_ Heat Sink fried. 01305_ K-01 Serf collects debris. 01307_ Acquired 10 matter. 01307_ K-01 Serf collects debris. 01311_ U-05 Engineer builds a Door. 01313_ K-01 Serf collects debris. 01316_ T-07 Excavator is excavating. 01319_ U-05 Engineer lays Concrete. 01350_ T-07 Excavator is excavating. 01381_ U-05 Engineer lays Concrete. 01385_ O-16 Technician sends out distress signal. 01385_ O-16 Technician: "IFF HANDSHAKE FAILED. SECURING TERMINAL." 01389_ ALERT: Hostiles spotted, dispatching reinforcements to Terminal M004. 01391_ System corrupted: Substantial component data lost. 01396_ Aluminum Leg destroyed. Map ----- +----------------------------------------------------+ | ????######+#### # """"" ??????????????????????? | | ???????# # # """"" #?????????????????????? | | ???????# + # #?????????????????????? | | ???????# " " ###%##########?????????????????????? | | ???????# "R" #?# #??????????????????????????????? | | ???????# """ #?# #??????????????????????????????? | | ???????# #?# #??????????????????????????????? | | ??????###########+#??????????????????????????????? | | ????# #??????????????????????????????? | | ????? """ """ """ #??????????????????????????????? | | ????# """ """ """ #??????????????????????????????? | | ????# """ """ """ #??????????????????????????????? | | ????# ##?????????????????????????????? | | ????# % # ????? #?????????????????????? | | ????##########+#### """ #?????????????????????? | | ????#######?# % #?# """"" #?????????????????????? | | ????# # #?# """"" #?????????????????????? | | ????# # #?# """"" #?????????????????????? | | ????# #?# """ #?????????????????????? | | ?????# # #?# #?????????????????????? | | ?????######## #?#*[ ! #?????????????????????? | | ????######### ###[ #????? #??????????????? | | ????# # ######+######## ########????????? | | ????# # ##### ????? | | ????# + ????? | | ????# # ##### @ ????? | | ????# ! # #???##+#/##################?????? | | ????# #######????? ?????????????????????? | | ????########??????????# #???????????????????? | | ??????????????????????# """ #???????????????????? | | ??????????????????????# """ #???????????????????? | | ??????????????????????#[ """ #???????????????????? | | ??????????????????????# #???????????????????? | | ??????????????????????########???????????????????? | | ?????????????????????????????????????????????????? | | ?????????????????????????????????????????????????? | | ?????????????????????????????????????????????????? | | | | | | | | | | | | | | | | | | | | | | | | | | | +----------------------------------------------------+ Best States ------------- Heat Dissipation 28 Energy Generation 14 Energy Capacity 280 Matter Stores 300 Matter Capacity 300 Sight Range 16 Terrain Scan Density 10 Additional Mass Support 6 Armor Coverage 150 Propulsion Shielding 33 Evasion (%) 55 Item Schematics ----------------- Hcp. Storage Unit | -9/Materials | Hacked Imp. Aluminum Leg | -9/Materials | Scanalyzed Aluminum Leg | -9/Materials | Scanalyzed Hacking Suite | -9/Materials | Scanalyzed Robot Schematics ------------------ None Fabricated ------------ Nothing Repaired ---------- Mining Claw | 27% | -9/Materials Studied --------- None Alien Tech Used ----------------- None Achievements -------------- None Challenges ------------ None Game ------ Seed AlphaStorageCompactor Manual? 0 Play Time 00:12:51 Cumulative 274.2 hours Start 2025.11.16 @ 08:49:08 End 2025.11.16 @ 09:04:11 Sessions 1 Manual Loads 0 Difficulty Rogue Special Mode None Game No. 284 Rogue 280 Adventurer 3 Explorer 1 Win Type - Total 1 Types 1/0/0/0/0/0/0/0/0/0 Lore% 78 Gallery% 76 Achievement% 60 Wizard Run 0 Options --------- Layout 0 ASCII 0 Keyboard 0 Movement Mouse Keybinds 0 Fullscreen 2 Font 18/SmallcapsGlow Map View 76x50 Zoom Use 0% Tactical HUD 1 Map Filters NONE Filters NONE Steam 1 RUN: 6701e7da-94da-4d3b-b065-10705f6de1dd